fUSD/lending_fUSD_20250118
["ID","MTS","AMOUNT","RATE_DAILY","PERIOD"]
[349439153,1737181843940,-500.0,0.00020144,2]
[349439154,1737181843949,-500.0,0.00020144,2]
[349439155,1737181843959,-500.0,0.00020144,2]
[349439156,1737181843968,-500.0,0.00020144,2]
[349439157,1737181843977,-901.21,0.00020144,2]
[349439158,1737181843987,-500.0,0.00020144,2]
[349439159,1737181843996,-500.0,0.00020144,2]
[349439160,1737181844005,-672.65,0.00020144,2]
[349439161,1737181844015,-500.0,0.00020144,2]
[349439162,1737181844024,-500.0,0.00020144,2]
[349439163,1737181844033,-500.0,0.00020144,2]
[349439164,1737181844043,-500.0,0.00020144,2]
[349439165,1737181844052,-500.0,0.00020144,2]
[349439166,1737181844062,-500.0,0.00020144,2]
[349439167,1737181844073,-500.0,0.00020144,2]
[349439168,1737181844082,-726.82,0.00020144,2]
[349439169,1737181844092,-500.0,0.00020144,2]
[349439170,1737181844101,-500.0,0.00020144,2]
[349439171,1737181844111,-500.0,0.00020144,2]
[349439172,1737181844120,-195.18104356,0.00020144,2]
[349439173,1737181844129,-500.0,0.00020144,2]
[349439174,1737181844139,-501.63107825,0.00020144,2]
[349439175,1737181844148,-704.6,0.00020144,2]
[349439176,1737181844157,-500.0,0.00020144,2]
[349439177,1737181844166,-500.0,0.00020144,2]
[349439178,1737181844175,-500.0,0.00020144,2]
[349439179,1737181844184,-500.0,0.00020144,2]
[349439180,1737181844193,-500.0,0.00020144,2]
[349439181,1737181844202,-500.0,0.00020144,2]
[349439182,1737181844211,-500.0,0.00020144,2]
[349439183,1737181844220,-500.0,0.00020144,2]
[349439184,1737181844229,-500.0,0.00020144,2]
[349439185,1737181844240,-500.0,0.00020144,2]
[349439186,1737181844249,-500.0,0.00020144,2]
[349439187,1737181844259,-154.835015,0.0002016,10]
[349439188,1737181844268,-202.99342504,0.00020186,2]
[349439189,1737181844277,-1469.0,0.000202,2]
[349439190,1737181844286,-155.05222177,0.00020232,2]
[349439191,1737181844297,-3000.0,0.0002024,2]
[349439192,1737181844309,-338.92452611,0.00020248,2]
[349439193,1737181844318,-1000.0,0.00020273,14]
[349439194,1737181844329,-500.0,0.00020298,2]
[349439195,1737181844339,-500.0,0.00020298,2]
[349439196,1737181844350,-500.0,0.00020298,2]
[349439197,1737181844359,-500.0,0.00020299,2]
[349439198,1737181844369,-865.53,0.00020299,2]
[349439199,1737181844381,-500.0,0.00020299,2]
[349439200,1737181844391,-652.28,0.00020299,2]
[349439201,1737181844400,-661.19,0.00020299,2]
[349439202,1737181844409,-670.81,0.00020299,2]
[349439203,1737181844418,-732.9,0.00020299,2]
[349439204,1737181844427,-837.06,0.00020299,2]
[349439205,1737181844438,-500.0,0.00020299,2]
[349439206,1737181844448,-500.0,0.00020299,2]
[349439207,1737181844458,-2165.72,0.00020299,2]
[349439208,1737181844469,-500.0,0.00020299,2]
[349439209,1737181844479,-500.0,0.00020299,2]
[349439210,1737181844488,-500.0,0.00020299,2]
[349439211,1737181844497,-655.41,0.00020299,2]
[349439212,1737181844506,-500.0,0.00020299,2]
[349439213,1737181844517,-500.0,0.00020299,2]
[349439214,1737181844527,-2779.13,0.00020299,2]
[349439215,1737181844537,-737.18,0.00020299,2]
[349439216,1737181844546,-2921.11,0.00020299,2]
[349439217,1737181844556,-1742.56,0.00020299,2]
[349439218,1737181844566,-500.0,0.00020299,2]
[349439219,1737181844575,-1506.09,0.00020299,2]
[349439220,1737181844585,-500.0,0.00020299,2]
[349439221,1737181844595,-500.0,0.00020299,2]
[349439222,1737181844604,-749.54,0.00020299,2]
[349439223,1737181844614,-500.0,0.00020299,2]
[349439224,1737181844624,-500.0,0.00020299,2]
[349439225,1737181844636,-500.0,0.00020299,2]
[349439226,1737181844645,-500.0,0.00020299,2]
[349439227,1737181844654,-500.0,0.00020299,2]
[349439228,1737181844663,-6066.925593,0.000203,2]
[349439229,1737181844673,-1800.0,0.000203,7]
[349439230,1737181844682,-15192.367789,0.000203,2]
[349439231,1737181844691,-1700.0,0.000203,7]
[349439232,1737181844700,-202.99342504,0.00020329,2]
[349439233,1737181844709,-155.05222177,0.00020366,2]
[349439234,1737181844718,-3000.0,0.000204,2]
[349439235,1737181844727,-2200.0,0.000204,7]
[349439236,1737181844737,-2200.0,0.000204,7]
[349439237,1737181844746,-338.92452611,0.00020465,2]
[349439238,1737181844755,-4787.0,0.00020466,2]
[349439239,1737181844764,-202.99342504,0.00020471,2]
[349439240,1737181844774,-535.78,0.00020495,2]
[349439241,1737181844784,-816.59,0.00020495,2]
[349439242,1737181844793,-508.92,0.00020495,2]
[349439243,1737181844802,-500.0,0.00020495,2]
[349439244,1737181844811,-642.28,0.00020495,2]
[349439245,1737181844820,-905.15,0.00020495,2]
[349439246,1737181844830,-500.0,0.00020495,2]
[349439247,1737181844839,-1584.7,0.00020495,2]
[349439248,1737181844848,-550.06,0.00020495,2]
[349439249,1737181844857,-500.0,0.00020495,2]
[349439250,1737181844866,-500.0,0.00020495,2]
[349439251,1737181844875,-500.0,0.00020495,2]
[349439252,1737181844887,-500.0,0.00020495,2]
[349439253,1737181844896,-500.0,0.00020495,2]
[349439254,1737181844905,-3557.31,0.00020495,2]
[349439255,1737181844915,-500.0,0.00020495,2]
[349439256,1737181844924,-547.09,0.00020495,2]
[349439257,1737181844933,-638.46,0.00020495,2]
[349439258,1737181844942,-500.0,0.00020495,2]
[349439259,1737181844952,-536.91,0.00020495,2]
[349439260,1737181844962,-500.0,0.00020496,2]
[349439261,1737181844971,-500.0,0.00020496,2]
[349439262,1737181844981,-524.43,0.00020496,2]
[349439263,1737181844991,-693.13,0.00020496,2]
[349439264,1737181845000,-500.0,0.00020496,2]
[349439265,1737181845010,-500.0,0.00020496,2]
[349439266,1737181845019,-500.0,0.00020496,2]
[349439267,1737181845029,-500.0,0.00020496,2]
[349439268,1737181845040,-500.0,0.00020496,2]
[349439269,1737181845050,-500.0,0.00020496,2]
[349439270,1737181845059,-500.0,0.00020496,2]
[349439271,1737181845069,-500.0,0.00020496,2]
[349439272,1737181845078,-515.41,0.00020496,2]
[349439273,1737181845088,-1720.41,0.00020496,2]
[349439274,1737181845097,-500.0,0.00020496,2]
[349439275,1737181845107,-500.0,0.00020496,2]
[349439276,1737181845117,-1091.73,0.00020496,2]
[349439277,1737181845126,-2055.56,0.00020496,2]
[349439278,1737181845137,-972.22,0.00020496,2]
[349439279,1737181845147,-500.0,0.00020496,2]
[349439280,1737181845157,-500.0,0.00020496,2]
[349439281,1737181845166,-1968.38895893,0.00020496,2]
[349439282,1737181845175,-503.5652404,0.00020497,2]
[349439283,1737181845185,-337.91297077,0.00020497,2]
[349439284,1737181845195,-500.0,0.00020497,2]
[349439285,1737181845204,-500.0,0.00020497,2]
[349439286,1737181845214,-500.0,0.00020497,2]
[349439287,1737181845223,-500.0,0.00020497,2]
[349439288,1737181845233,-1514.14,0.00020497,2]
[349439289,1737181845242,-500.0,0.00020497,2]
[349439290,1737181845251,-500.0,0.00020497,2]
[349439291,1737181845261,-500.0,0.00020497,2]
[349439292,1737181845270,-500.0,0.00020497,2]
[349439293,1737181845280,-660.65,0.00020497,2]
[349439294,1737181845289,-500.0,0.00020497,2]
[349439295,1737181845301,-500.0,0.00020497,2]
[349439296,1737181845311,-500.0,0.00020497,2]
[349439297,1737181845320,-500.0,0.00020497,2]
[349439298,1737181845330,-500.0,0.00020497,2]
[349439299,1737181845339,-500.0,0.00020497,2]
[349439300,1737181845349,-500.0,0.00020497,2]
[349439301,1737181845359,-500.0,0.00020497,2]
[349439302,1737181845368,-500.0,0.00020497,2]
[349439303,1737181845377,-500.0,0.00020497,2]
[349439304,1737181845388,-500.0,0.00020497,2]
[349439305,1737181845397,-500.0,0.00020497,2]
[349439306,1737181845406,-238.47285661,0.00020497,2]
[349439307,1737181845415,-836.95,0.00020497,2]
[349439308,1737181845425,-500.0,0.00020497,2]
[349439309,1737181845434,-1258.98,0.00020497,2]
[349439310,1737181845443,-548.30389827,0.00020497,2]
[349439311,1737181845452,-500.0,0.00020497,2]
[349439312,1737181845462,-500.0,0.00020497,2]
[349439313,1737181845471,-1540.81,0.00020497,2]
[349439314,1737181845480,-500.0,0.00020497,2]
[349439315,1737181845489,-1808.9,0.00020497,2]
[349439316,1737181845498,-940.37,0.00020497,2]
[349439317,1737181845507,-573.72,0.00020497,2]
[349439318,1737181845516,-537.94,0.00020497,2]
[349439319,1737181845525,-500.0,0.00020497,2]
[349439320,1737181845535,-500.0,0.00020497,2]
[349439321,1737181845543,-500.0,0.00020497,2]
[349439322,1737181845553,-500.0,0.00020497,2]
[349439323,1737181845563,-500.0,0.00020497,2]
[349439324,1737181845572,-319.22501676,0.00020497,2]
[349439325,1737181845582,-1060.79,0.00020497,2]
[349439326,1737181845591,-4071.85,0.00020497,2]
[349439327,1737181845600,-500.0,0.00020497,2]
[349439328,1737181845609,-500.0,0.00020497,2]
[349439329,1737181845619,-544.87,0.00020497,2]
[349439330,1737181845628,-500.0,0.00020497,2]
[349439331,1737181845639,-560.14,0.00020497,2]
[349439332,1737181845648,-532.85,0.00020497,2]
[349439333,1737181845657,-500.0,0.00020497,2]
[349439334,1737181845667,-630.74,0.00020497,2]
[349439335,1737181845678,-500.0,0.00020497,2]
[349439336,1737181845687,-500.0,0.00020497,2]
[349439337,1737181845697,-500.0,0.00020497,2]
[349439338,1737181845706,-500.0,0.00020497,2]
[349439339,1737181845716,-501.48,0.00020497,2]
[349439340,1737181845726,-1000.0,0.00020497,2]
[349439341,1737181845735,-2191.22,0.00020497,2]
[349439342,1737181845745,-500.0,0.00020497,2]
[349439343,1737181845755,-648.8,0.00020497,2]
[349439344,1737181845764,-500.0,0.00020497,2]
[349439345,1737181845773,-500.0,0.00020497,2]
[349439346,1737181845783,-910.82,0.00020497,2]
[349439347,1737181845792,-500.0,0.00020497,2]
[349439348,1737181845802,-500.0,0.00020497,2]
[349439349,1737181845811,-1036.44,0.00020497,2]
[349439350,1737181845821,-500.0,0.00020497,2]
[349439351,1737181845830,-500.0,0.00020497,2]
[349439352,1737181845839,-500.0,0.00020497,2]
[349439353,1737181845849,-865.53,0.00020497,2]
[349439354,1737181845858,-865.53,0.00020497,2]
[349439355,1737181845867,-1032.98,0.00020497,2]
[349439356,1737181845877,-500.0,0.00020497,2]
[349439357,1737181845888,-500.0,0.00020497,2]
[349439358,1737181845897,-604.75,0.00020497,2]
[349439359,1737181845906,-500.0,0.00020497,2]
[349439360,1737181845916,-500.0,0.00020497,2]
[349439361,1737181845925,-500.0,0.00020497,2]
[349439362,1737181845934,-500.0,0.00020497,2]
[349439363,1737181845944,-652.28,0.00020497,2]
[349439364,1737181845954,-652.28,0.00020497,2]
[349439365,1737181845964,-500.0,0.00020497,2]
[349439366,1737181845973,-500.0,0.00020497,2]
[349439367,1737181845982,-500.0,0.00020497,2]
[349439368,1737181845991,-500.0,0.00020497,2]
[349439369,1737181846001,-661.19,0.00020497,2]
[349439370,1737181846010,-500.0,0.00020497,2]
[349439371,1737181846019,-661.19,0.00020497,2]
[349439372,1737181846029,-670.81,0.00020497,2]
[349439373,1737181846038,-670.81,0.00020497,2]
[349439374,1737181846047,-1182.47,0.00020497,2]
[349439375,1737181846056,-500.0,0.00020497,2]
[349439376,1737181846066,-500.0,0.00020497,2]
[349439377,1737181846080,-743.89,0.00020497,2]
[349439378,1737181846090,-500.0,0.00020497,2]
[349439379,1737181846099,-504.22,0.00020497,2]
[349439381,1737181846109,-732.9,0.00020497,2]
[349439382,1737181846118,-732.9,0.00020497,2]
[349439383,1737181846127,-566.25,0.00020497,2]
[349439384,1737181846138,-500.0,0.00020497,2]
[349439385,1737181846147,-500.0,0.00020497,2]
[349439386,1737181846157,-837.06,0.00020497,2]
[349439387,1737181846166,-583.75,0.00020497,2]
[349439388,1737181846176,-837.06,0.00020497,2]
[349439389,1737181846185,-500.0,0.00020497,2]
[349439390,1737181846194,-500.0,0.00020497,2]
[349439391,1737181846203,-500.0,0.00020497,2]
[349439392,1737181846213,-500.0,0.00020497,2]
[349439393,1737181846222,-500.0,0.00020497,2]
[349439394,1737181846231,-500.0,0.00020497,2]
[349439395,1737181846241,-539.98,0.00020497,2]
[349439396,1737181846250,-500.0,0.00020497,2]
[349439397,1737181846259,-500.0,0.00020497,2]
[349439398,1737181846269,-500.0,0.00020497,2]
[349439399,1737181846278,-500.0,0.00020497,2]
[349439400,1737181846287,-500.0,0.00020497,2]
[349439401,1737181846297,-153.397885,0.00020497,2]
[349439402,1737181846309,-424.28253342,0.00020497,2]
[349439403,1737181846318,-500.0,0.00020497,2]
[349439404,1737181846327,-2165.72,0.00020497,2]
[349439405,1737181846336,-665.96,0.00020497,2]
[349439406,1737181846347,-2165.72,0.00020497,2]
[349439407,1737181846355,-500.0,0.00020497,2]
[349439408,1737181846365,-500.0,0.00020497,2]
[349439409,1737181846375,-552.04,0.00020497,2]
[349439410,1737181846384,-500.0,0.00020497,2]
[349439411,1737181846394,-500.0,0.00020497,2]
[349439412,1737181846403,-500.0,0.00020497,2]
[349439413,1737181846412,-500.0,0.00020497,2]
[349439414,1737181846421,-500.0,0.00020497,2]
[349439415,1737181846430,-500.0,0.00020497,2]
[349439416,1737181846440,-500.0,0.00020497,2]
[349439417,1737181846449,-500.0,0.00020497,2]
[349439418,1737181846459,-500.0,0.00020497,2]
[349439419,1737181846469,-655.41,0.00020497,2]
[349439420,1737181846479,-655.41,0.00020497,2]
[349439421,1737181846488,-500.0,0.00020497,2]
[349439422,1737181846498,-500.0,0.00020497,2]
[349439423,1737181846508,-500.0,0.00020497,2]
[349439424,1737181846517,-500.0,0.00020497,2]
[349439425,1737181846527,-500.0,0.00020497,2]
[349439426,1737181846537,-500.0,0.00020497,2]
[349439427,1737181846547,-500.0,0.00020497,2]
[349439428,1737181846558,-500.0,0.00020497,2]
[349439429,1737181846568,-500.0,0.00020497,2]
[349439430,1737181846577,-151.0,0.00020497,2]
[349439431,1737181846588,-500.0,0.00020497,2]
[349439432,1737181846597,-913.83,0.00020497,2]
[349439433,1737181846741,-500.0,0.00020497,2]
[349439434,1737181846758,-500.0,0.00020497,2]
[349439435,1737181846767,-154.158162,0.00020497,2]
[349439436,1737181846778,-500.0,0.00020497,2]
[349439437,1737181846787,-500.0,0.00020497,2]
[349439438,1737181846796,-500.0,0.00020497,2]
[349439439,1737181846805,-500.0,0.00020497,2]
[349439440,1737181846815,-500.0,0.00020497,2]
[349439441,1737181846824,-500.0,0.00020497,2]
[349439442,1737181846833,-2779.13,0.00020497,2]
[349439443,1737181846843,-2779.13,0.00020497,2]
[349439444,1737181846852,-500.0,0.00020497,2]
[349439445,1737181846861,-500.0,0.00020497,2]
[349439446,1737181846870,-737.18,0.00020497,2]
[349439447,1737181846880,-737.18,0.00020497,2]
[349439448,1737181846890,-837.27,0.00020497,2]
[349439449,1737181846899,-500.0,0.00020497,2]
[349439450,1737181846908,-535.78,0.00020497,2]
[349439451,1737181846918,-2921.11,0.00020497,2]
[349439452,1737181846927,-2921.11,0.00020497,2]
[349439453,1737181846936,-500.0,0.00020497,2]
[349439454,1737181846946,-500.0,0.00020497,2]
[349439455,1737181846955,-816.59,0.00020497,2]
[349439456,1737181846965,-505.00070789,0.00020497,2]
[349439457,1737181846974,-500.0,0.00020497,2]
[349439458,1737181846984,-1742.56,0.00020497,2]
[349439459,1737181846993,-508.92,0.00020497,2]
[349439460,1737181847002,-500.0,0.00020497,2]
[349439461,1737181847011,-1742.56,0.00020497,2]
[349439462,1737181847021,-500.0,0.00020497,2]
[349439463,1737181847030,-1202.88,0.00020497,2]
[349439464,1737181847040,-251.545816,0.00020497,2]
[349439465,1737181847050,-500.0,0.00020497,2]
[349439466,1737181847059,-500.0,0.00020497,2]
[349439467,1737181847068,-500.0,0.00020497,2]
[349439468,1737181847078,-500.0,0.00020497,2]
[349439469,1737181847087,-5466.313161,0.00020497,2]
[349439470,1737181847096,-500.0,0.00020497,2]
[349439471,1737181847106,-1506.09,0.00020497,2]
[349439472,1737181847115,-251.545816,0.00020497,2]
[349439473,1737181847124,-500.0,0.00020497,2]
[349439474,1737181847135,-1506.09,0.00020497,2]
[349439475,1737181847145,-5466.313161,0.00020497,2]
[349439476,1737181847154,-642.28,0.00020497,2]
[349439477,1737181847164,-901.21,0.00020497,2]
[349439478,1737181847173,-905.15,0.00020497,2]
[349439479,1737181847184,-904.25,0.00020497,2]
[349439480,1737181847193,-151.0,0.00020497,2]
[349439481,1737181847202,-764.09,0.00020497,2]
[349439482,1737181847212,-500.0,0.00020497,2]
[349439483,1737181847221,-500.0,0.00020497,2]
[349439484,1737181847230,-672.65,0.00020497,2]
[349439485,1737181847239,-500.0,0.00020497,2]
[349439486,1737181847249,-397.6979634,0.00020497,2]
[349439487,1737181847258,-500.0,0.00020497,2]
[349439488,1737181847268,-500.0,0.00020497,2]
[349439489,1737181847277,-606.25,0.00020497,2]
[349439490,1737181847286,-500.0,0.00020497,2]
[349439491,1737181847295,-500.0,0.00020497,2]
[349439492,1737181847308,-1584.7,0.00020497,2]
[349439493,1737181847317,-500.0,0.00020497,2]
[349439494,1737181847327,-1065.18,0.00020497,2]
[349439495,1737181847336,-500.0,0.00020497,2]
[349439496,1737181847347,-550.06,0.00020497,2]
[349439497,1737181847356,-749.54,0.00020497,2]
[349439498,1737181847364,-749.54,0.00020497,2]
[349439499,1737181847374,-500.0,0.00020497,2]
[349439500,1737181847385,-1603.54,0.00020497,2]
[349439501,1737181847395,-500.0,0.00020497,2]
[349439502,1737181847404,-500.0,0.00020497,2]
[349439503,1737181847413,-503.50501911,0.00020497,2]
[349439504,1737181847423,-500.0,0.00020497,2]
[349439505,1737181847432,-500.0,0.00020497,2]
[349439506,1737181847442,-726.82,0.00020497,2]
[349439507,1737181847452,-500.0,0.00020497,2]
[349439508,1737181847461,-500.0,0.00020497,2]
[349439509,1737181847471,-151.0,0.00020497,2]
[349439510,1737181847481,-151.0,0.00020497,2]
[349439511,1737181847490,-500.0,0.00020497,2]
[349439512,1737181847499,-500.0,0.00020497,2]
[349439513,1737181847508,-500.0,0.00020497,2]
[349439514,1737181847517,-151.0,0.00020497,2]
[349439515,1737181847527,-500.0,0.00020497,2]
[349439516,1737181847536,-677.73,0.00020497,2]
[349439517,1737181847545,-500.0,0.00020497,2]
[349439518,1737181847555,-500.0,0.00020497,2]
[349439519,1737181847564,-500.0,0.00020497,2]
[349439520,1737181847574,-151.0,0.00020497,2]
[349439521,1737181847585,-155.40298043,0.00020497,2]
[349439522,1737181847595,-500.0,0.00020497,2]
[349439523,1737181847604,-500.0,0.00020497,2]
[349439524,1737181847613,-500.0,0.00020497,2]
[349439525,1737181847624,-704.6,0.00020497,2]
[349439526,1737181847635,-500.0,0.00020497,2]
[349439527,1737181847644,-150.23224682,0.00020497,2]
[349439528,1737181847654,-500.0,0.00020497,2]
[349439529,1737181847663,-3557.31,0.00020497,2]
[349439530,1737181847672,-500.0,0.00020497,2]
[349439531,1737181847682,-500.0,0.00020497,2]
[349439532,1737181847691,-510.82307445,0.00020497,2]
[349439533,1737181847700,-151.0,0.00020497,2]
[349439534,1737181847709,-500.0,0.00020497,2]
[349439535,1737181847718,-505.71404962,0.00020497,2]
[349439536,1737181847728,-151.0,0.00020497,2]
[349439537,1737181847737,-500.0,0.00020497,2]
[349439538,1737181847747,-500.0,0.00020497,2]
[349439539,1737181847756,-790.72,0.00020497,2]
[349439540,1737181847766,-500.0,0.00020497,2]
[349439541,1737181847776,-500.0,0.00020497,2]
[349439542,1737181847785,-500.0,0.00020497,2]
[349439543,1737181847795,-547.09,0.00020497,2]
[349439544,1737181847804,-500.0,0.00020497,2]
[349439545,1737181847814,-500.0,0.00020497,2]
[349439546,1737181847824,-500.0,0.00020497,2]
[349439547,1737181847833,-638.46,0.00020497,2]
[349439548,1737181847843,-500.0,0.00020497,2]
[349439549,1737181847852,-500.0,0.00020497,2]
[349439550,1737181847862,-500.0,0.00020497,2]
[349439551,1737181847872,-500.0,0.00020497,2]
[349439552,1737181847883,-500.0,0.00020497,2]
[349439553,1737181847893,-500.0,0.00020497,2]
[349439554,1737181847903,-500.0,0.00020497,2]
[349439555,1737181847913,-500.0,0.00020497,2]
[349439556,1737181847923,-500.0,0.00020497,2]
[349439557,1737181847932,-500.0,0.00020497,2]
[349439558,1737181847941,-536.91,0.00020497,2]
[349439559,1737181847951,-500.0,0.00020497,2]
[349439560,1737181847960,-151.0,0.00020497,2]
[349439561,1737181847969,-500.0,0.00020497,2]
[349439562,1737181847978,-413.80810461,0.00020497,2]
[349439563,1737181847987,-506.16033774,0.00020497,2]
[349439564,1737181847997,-151.0,0.00020497,2]
[349439565,1737181848006,-510.23348397,0.00020497,2]
[349439566,1737181848015,-500.0,0.00020497,2]
[349439567,1737181848024,-500.0,0.00020497,2]
[349439568,1737181848034,-916.14656443,0.00020498,2]
[349439569,1737181848043,-500.0,0.00020498,2]
[349439570,1737181848053,-500.0,0.00020498,2]
[349439571,1737181848062,-500.0,0.00020498,2]
[349439572,1737181848071,-500.0,0.00020498,2]
[349439573,1737181848080,-500.0,0.00020498,2]
[349439574,1737181848090,-500.0,0.00020498,2]
[349439575,1737181848100,-500.0,0.00020498,2]
[349439576,1737181848109,-619.24650888,0.00020498,2]
[349439577,1737181848118,-1514.14,0.00020498,2]
[349439578,1737181848128,-500.0,0.00020498,2]
[349439579,1737181848140,-500.0,0.00020498,2]
[349439580,1737181848150,-500.0,0.00020498,2]
[349439581,1737181848159,-316.47743143,0.00020498,2]
[349439582,1737181848168,-500.0,0.00020498,2]
[349439583,1737181848178,-500.0,0.00020498,2]
[349439584,1737181848187,-305.09057355,0.00020498,2]
[349439585,1737181848197,-500.0,0.00020498,2]
[349439586,1737181848206,-660.65,0.00020498,2]
[349439587,1737181848215,-660.65,0.00020498,2]
[349439588,1737181848224,-660.65,0.00020498,2]
[349439589,1737181848234,-325.72313877,0.00020498,2]
[349439590,1737181848243,-524.43,0.00020498,2]
[349439591,1737181848252,-524.43,0.00020498,2]
[349439592,1737181848262,-693.13,0.00020498,2]
[349439593,1737181848272,-693.13,0.00020498,2]
[349439594,1737181848282,-330.32,0.00020498,2]
[349439595,1737181848291,-500.0,0.00020498,2]
[349439596,1737181848305,-500.0,0.00020498,2]
[349439597,1737181848315,-500.0,0.00020498,2]
[349439598,1737181848325,-500.0,0.00020498,2]
[349439599,1737181848334,-500.0,0.00020498,2]
[349439600,1737181848344,-500.0,0.00020498,2]
[349439601,1737181848353,-500.0,0.00020498,2]
[349439602,1737181848362,-500.0,0.00020498,2]
[349439603,1737181848371,-500.0,0.00020498,2]
[349439604,1737181848383,-500.0,0.00020498,2]
[349439605,1737181848393,-500.0,0.00020498,2]
[349439606,1737181848403,-500.0,0.00020498,2]
[349439607,1737181848412,-500.0,0.00020498,2]
[349439608,1737181848421,-500.0,0.00020498,2]
[349439609,1737181848431,-500.0,0.00020498,2]
[349439610,1737181848439,-500.0,0.00020498,2]
[349439611,1737181848449,-500.0,0.00020498,2]
[349439612,1737181848458,-836.95,0.00020498,2]
[349439613,1737181848468,-500.0,0.00020498,2]
[349439614,1737181848477,-515.41,0.00020498,2]
[349439615,1737181848487,-515.41,0.00020498,2]
[349439616,1737181848497,-500.0,0.00020498,2]
[349439617,1737181848506,-1258.98,0.00020498,2]
[349439618,1737181848515,-1720.41,0.00020498,2]
[349439619,1737181848525,-1720.41,0.00020498,2]
[349439620,1737181848534,-500.0,0.00020498,2]
[349439621,1737181848544,-500.0,0.00020498,2]
[349439622,1737181848553,-500.0,0.00020498,2]
[349439623,1737181848563,-500.0,0.00020498,2]
[349439624,1737181848572,-500.0,0.00020498,2]
[349439625,1737181848581,-500.0,0.00020498,2]
[349439626,1737181848590,-1091.73,0.00020498,2]
[349439627,1737181848600,-1091.73,0.00020498,2]
[349439628,1737181848609,-1540.81,0.00020498,2]
[349439629,1737181848619,-500.0,0.00020498,2]
[349439630,1737181848628,-1808.9,0.00020498,2]
[349439631,1737181848639,-2055.56,0.00020498,2]
[349439632,1737181848649,-2055.56,0.00020498,2]
[349439633,1737181848658,-940.37,0.00020498,2]
[349439634,1737181848668,-972.22,0.00020498,2]
[349439635,1737181848678,-972.22,0.00020498,2]
[349439636,1737181848688,-151.0,0.00020498,2]
[349439637,1737181848698,-537.94,0.00020498,2]
[349439638,1737181848708,-500.0,0.00020498,2]
[349439639,1737181848717,-500.0,0.00020498,2]
[349439640,1737181848727,-500.0,0.00020498,2]
[349439641,1737181848737,-500.0,0.00020498,2]
[349439642,1737181848746,-500.0,0.00020498,2]
[349439643,1737181848756,-1060.79,0.00020498,2]
[349439644,1737181848766,-4071.85,0.00020498,2]
[349439645,1737181848776,-500.0,0.00020498,2]
[349439646,1737181848785,-500.0,0.00020498,2]
[349439647,1737181848795,-500.0,0.00020498,2]
[349439648,1737181848805,-500.0,0.00020498,2]
[349439649,1737181848814,-151.0,0.00020498,2]
[349439650,1737181848823,-544.87,0.00020498,2]
[349439651,1737181848833,-151.0,0.00020498,2]
[349439652,1737181848842,-560.14,0.00020498,2]
[349439653,1737181848852,-532.85,0.00020498,2]